bitfinex/quotes_BTCUSD_20250123
["timestamp","ask_amount","ask_price","bid_price","bid_amount"]
[1737646919993,0.0977968,104740.0,104730.0,0.67972348]
[1737646920224,0.1932708,104740.0,104730.0,0.6138869]
[1737646920435,0.1932708,104740.0,104730.0,0.62872348]
[1737646920631,0.3432708,104740.0,104730.0,0.53338298]
[1737646920844,0.3662708,104740.0,104730.0,0.45708298]
[1737646921039,0.4234708,104740.0,104730.0,0.45708298]
[1737646921239,0.3662708,104740.0,104730.0,0.45608298]
[1737646921443,0.2477968,104740.0,104730.0,0.55156598]
[1737646921640,0.2477968,104740.0,104730.0,0.45708298]
[1737646921854,0.3432708,104740.0,104730.0,0.45708298]
[1737646922053,0.3662708,104740.0,104730.0,0.45708298]
[1737646922254,0.4434708,104740.0,104730.0,0.4467833]
[1737646922455,0.4434708,104740.0,104700.0,0.0014795]
[1737646922456,0.115501,104710.0,104700.0,0.0014795]
[1737646922656,0.68842399,104710.0,104700.0,0.0014795]
[1737646922860,0.76872399,104710.0,104700.0,0.47753]
[1737646923086,0.66842399,104710.0,104700.0,0.38202]
[1737646923317,0.72062399,104710.0,104700.0,0.38202]
[1737646923581,0.72062399,104710.0,104700.0,0.34600747]
[1737646924455,0.74012076,104710.0,104700.0,0.34600747]
[1737646924761,0.7497046,104710.0,104700.0,0.34600747]
[1737646925010,0.7587046,104710.0,104700.0,0.34600747]
[1737646925218,0.6703046,104710.0,104700.0,0.35018731]
[1737646925435,0.6703046,104710.0,104700.0,0.34600747]
[1737646925905,0.6503046,104710.0,104700.0,0.34600747]
[1737646926085,0.6773046,104710.0,104700.0,0.34700747]
[1737646926245,0.095547,104660.0,104650.0,0.0823]
[1737646926424,0.27034729,104660.0,104650.0,0.382204]
[1737646926623,0.55700129,104660.0,104650.0,0.382204]
[1737646927438,0.55700129,104660.0,104650.0,0.38235304]
[1737646927791,0.24734729,104660.0,104650.0,0.47790904]
[1737646928107,0.34289429,104660.0,104650.0,0.47790904]
[1737646928277,0.34289429,104660.0,104650.0,0.38235304]
[1737646929243,0.36589429,104660.0,104650.0,0.38235304]
[1737646929442,0.38589429,104660.0,104650.0,0.38663733]
[1737646929676,0.36589429,104660.0,104650.0,0.38663733]
[1737646930718,0.36589429,104660.0,104650.0,0.38235304]
[1737646930719,0.34289429,104660.0,104650.0,0.38235304]
[1737646930866,0.09734729,104660.0,104650.0,0.47790904]
[1737646931272,0.09734729,104660.0,104650.0,0.52790904]
[1737646931487,0.392024,104710.0,104690.0,0.09552]
[1737646931718,0.19285729,104700.0,104690.0,0.286559]
[1737646931963,0.6484793,104700.0,104690.0,0.57316]
[1737646932173,0.095574,104630.0,104620.0,0.0001427]
[1737646932373,0.0001,104610.0,104590.0,0.0786427]
[1737646932577,0.19294929,104600.0,104590.0,0.0786427]
[1737646932785,0.19294929,104600.0,104590.0,0.65276068]
[1737646932786,0.09734729,104600.0,104590.0,0.65276068]
[1737646932990,0.6276187,104650.0,104620.0,0.191166]
[1737646933219,0.19291429,104640.0,104620.0,0.955831]
[1737646933419,0.38404629,104640.0,104620.0,0.764664]
[1737646933626,0.24734729,104640.0,104630.0,0.095574]
[1737646933880,0.34291329,104640.0,104630.0,0.573444]
[1737646934070,0.36591329,104640.0,104630.0,0.47787]
[1737646934268,0.34291329,104640.0,104630.0,0.47787]
[1737646934682,0.36591329,104640.0,104630.0,0.47787]
[1737646934918,0.34291329,104640.0,104630.0,0.47836698]
[1737646935305,0.34291229,104640.0,104630.0,0.47836698]
[1737646935525,0.24734729,104640.0,104630.0,0.47836698]
[1737646935656,0.35234653,104640.0,104630.0,0.47836698]
[1737646936066,0.35234653,104640.0,104630.0,0.57394098]
[1737646936067,0.25678153,104640.0,104630.0,0.57394098]
[1737646936303,0.19291229,104640.0,104630.0,0.47836698]
[1737646936509,0.36591229,104640.0,104630.0,0.47836698]
[1737646938025,0.36591229,104640.0,104630.0,0.47936698]
[1737646939439,0.37553745,104640.0,104630.0,0.47936698]
[1737646940070,0.38453745,104640.0,104630.0,0.47936698]
[1737646940310,0.36153745,104640.0,104630.0,0.47836698]
[1737646940712,0.38953745,104640.0,104630.0,0.47836698]
[1737646940940,0.38053745,104640.0,104630.0,0.47836698]
[1737646941124,0.40953745,104640.0,104630.0,0.47836698]
[1737646941354,0.38953745,104640.0,104630.0,0.47836698]
[1737646941486,0.36153745,104640.0,104630.0,0.47836698]
[1737646941681,0.37553745,104640.0,104630.0,0.47836698]
[1737646941883,0.36153745,104640.0,104630.0,0.47836698]
[1737646942084,0.10634729,104640.0,104630.0,0.47836698]
[1737646942290,0.009,104640.0,104630.0,0.69604098]
[1737646942604,0.038241,104660.0,104650.0,0.145556]
[1737646942799,0.09734729,104660.0,104650.0,0.623336]
[1737646942999,0.00974401,104690.0,104680.0,0.095526]
[1737646943250,0.09734729,104690.0,104680.0,0.573176]
[1737646943456,0.19286729,104690.0,104680.0,0.47765]
[1737646944360,0.19286729,104690.0,104680.0,0.47779904]
[1737646944607,0.64544299,104690.0,104680.0,0.44287788]
[1737646944813,0.66183391,104690.0,104680.0,0.08054723]
[1737646945029,0.67344299,104690.0,104680.0,0.04233523]
[1737646945328,0.68244299,104690.0,104680.0,0.04233523]
[1737646945458,0.68244299,104690.0,104640.0,0.0765]
[1737646945459,0.02,104670.0,104640.0,0.0765]
[1737646945658,0.02,104670.0,104620.0,0.0765]
[1737646945659,0.245565,104640.0,104620.0,0.0765]
[1737646945882,0.286684,104650.0,104640.0,0.32776]
[1737646946115,0.40703129,104650.0,104640.0,0.32776]
[1737646947119,0.40703129,104650.0,104640.0,0.32825698]
[1737646947995,0.55703129,104650.0,104640.0,0.32825698]
[1737646948762,0.40703129,104650.0,104640.0,0.32825698]
[1737646948992,0.41603129,104650.0,104640.0,0.32925698]
[1737646949873,0.10634729,104650.0,104640.0,0.42482198]
[1737646950067,0.20190329,104650.0,104640.0,0.32925698]
[1737646950230,0.22490329,104650.0,104640.0,0.32925698]
[1737646950434,0.19290329,104650.0,104640.0,0.42382198]
[1737646950638,0.09734729,104650.0,104640.0,0.42382198]
[1737646950837,0.2255535,104650.0,104640.0,0.32825698]
[1737646951104,0.3845535,104650.0,104640.0,0.32825698]
[1737646952284,0.1159975,104650.0,104640.0,0.42382198]
[1737646952856,0.1159975,104650.0,104640.0,0.32825698]
[1737646952857,0.3615535,104650.0,104640.0,0.32825698]
[1737646953034,0.3845535,104650.0,104640.0,0.32825698]
[1737646953620,0.3755535,104650.0,104640.0,0.32825698]
[1737646954090,0.3765535,104650.0,104640.0,0.32825698]
[1737646954453,0.3525535,104650.0,104640.0,0.32825698]
[1737646954802,0.1159975,104650.0,104640.0,0.42382198]
[1737646955011,0.10634729,104650.0,104640.0,0.52122198]
[1737646955382,0.09734729,104650.0,104640.0,0.47122198]
[1737646955791,0.28657,104690.0,104670.0,0.095536]
[1737646955999,0.28657,104690.0,104670.0,0.62769]
[1737646956000,0.09734729,104680.0,104670.0,0.62769]
[1737646956341,0.43825199,104680.0,104670.0,0.62769]
[1737646956865,0.09734729,104680.0,104670.0,0.62769]
[1737646957093,0.09734729,104680.0,104670.0,0.773228]
[1737646957697,0.09734729,104680.0,104670.0,0.723228]
[1737646958095,0.09734729,104680.0,104670.0,0.773228]
[1737646958694,0.09834729,104680.0,104670.0,0.773228]
[1737646959101,0.0096392,104700.0,104680.0,0.05]
[1737646959340,0.09734729,104690.0,104680.0,0.723179]
[1737646959909,0.09734729,104690.0,104680.0,0.964225]
[1737646960327,0.09749683,104690.0,104680.0,0.964225]
[1737646961021,0.00014954,104690.0,104680.0,0.964225]
[1737646961228,0.09749683,104690.0,104680.0,0.964225]
[1737646961805,0.00014954,104690.0,104680.0,1.03933908]
[1737646962252,0.00014954,104690.0,104680.0,1.14013908]
[1737646962498,0.00014954,104690.0,104680.0,1.045025]
[1737646962648,0.09749683,104690.0,104680.0,0.995025]
[1737646963014,0.09749683,104690.0,104680.0,1.045025]
[1737646963342,0.00014954,104690.0,104680.0,1.045025]
[1737646964046,0.09749683,104690.0,104680.0,1.045025]
[1737646964248,0.09749683,104690.0,104680.0,0.803979]
[1737646964632,0.09749683,104690.0,104680.0,0.853979]
[1737646965129,0.01,104710.0,104700.0,0.14551]
[1737646965330,0.10734729,104710.0,104700.0,0.77306]
[1737646965533,0.10734729,104710.0,104700.0,0.82216]
[1737646966121,0.10734729,104710.0,104700.0,0.77216]
[1737646966571,0.10734729,104710.0,104700.0,0.82216]
[1737646966726,0.11234729,104710.0,104700.0,0.82216]
[1737646967109,0.11234729,104710.0,104700.0,0.91950729]
[1737646967471,0.11234729,104710.0,104700.0,0.82216]
[1737646967842,0.015,104710.0,104700.0,0.82216]
[1737646968050,0.015,104710.0,104700.0,0.87046]
[1737646968051,0.00416729,104710.0,104700.0,0.87046]
[1737646968255,0.00416729,104710.0,104700.0,1.02046]
[1737646968412,0.00416729,104710.0,104700.0,1.07046]
[1737646968753,0.00029989,104740.0,104730.0,0.095483]
[1737646969072,0.09779683,104740.0,104730.0,0.772903]
[1737646969312,0.09779683,104740.0,104730.0,0.722903]
[1737646969492,0.09779683,104740.0,104730.0,0.772903]
[1737646970859,0.09779683,104740.0,104730.0,0.849003]
[1737646971064,0.00044954,104740.0,104730.0,0.94635029]
[1737646971675,0.00029925,104750.0,104740.0,0.145474]
[1737646971817,0.00029925,104750.0,104740.0,0.792844]
[1737646972245,0.00029925,104750.0,104740.0,0.772844]
[1737646972464,0.00029925,104750.0,104740.0,0.7790934]
[1737646972621,0.00029925,104750.0,104740.0,0.95984251]
[1737646972969,0.00029925,104750.0,104740.0,0.93984251]
[1737646973744,0.00974256,104780.0,104770.0,0.095447]
[1737646973945,0.00049864,104780.0,104770.0,0.770987]
[1737646974167,0.00049864,104780.0,104770.0,1.06502954]
[1737646974366,0.00049864,104780.0,104770.0,1.18117134]
[1737646974724,0.00049864,104780.0,104770.0,1.19333644]
[1737646974927,0.00049864,104780.0,104770.0,1.37333644]
[1737646975214,0.00049864,104780.0,104770.0,1.39333644]
[1737646975622,0.00049864,104780.0,104770.0,1.3589477]
[1737646975776,0.00049864,104780.0,104770.0,1.32333644]
[1737646975973,0.00049864,104780.0,104770.0,1.29137911]
[1737646976176,0.00049864,104780.0,104770.0,1.25699037]
[1737646976795,0.00149864,104780.0,104770.0,1.25699037]
[1737646977278,0.00149864,104780.0,104770.0,1.27566234]
[1737646977820,0.00049864,104780.0,104770.0,1.27566234]
[1737646978028,0.00049864,104780.0,104770.0,1.27966234]
[1737646978411,0.00049864,104780.0,104770.0,1.27666234]
[1737646978846,0.09784593,104780.0,104770.0,0.63124]
[1737646979055,0.21628393,104780.0,104770.0,0.63124]
[1737646979248,0.36628393,104780.0,104770.0,0.63540876]
[1737646979858,0.34328393,104780.0,104770.0,0.63540876]
[1737646980014,0.34328393,104780.0,104770.0,0.63440876]
[1737646980208,0.09784593,104780.0,104770.0,0.85905576]
[1737646980488,0.09784593,104780.0,104770.0,0.76460876]
[1737646980615,0.34328393,104780.0,104770.0,0.63540876]
[1737646980807,0.09784593,104780.0,104770.0,0.78085576]
[1737646981010,0.09784593,104780.0,104770.0,0.77985576]
[1737646981325,0.09784593,104780.0,104770.0,0.8179302]
[1737646981523,0.09784593,104780.0,104770.0,0.78085576]
[1737646981748,0.09784593,104780.0,104770.0,0.77785576]
[1737646981917,0.09784593,104780.0,104770.0,0.77685576]
[1737646982320,0.00079789,104780.0,104770.0,0.77685576]
[1737646982750,0.00079789,104780.0,104770.0,1.02045576]
[1737646982997,0.00079789,104780.0,104770.0,1.26515034]
[1737646983233,0.00079789,104780.0,104770.0,1.31515034]
[1737646983714,0.00029989,104820.0,104780.0,0.17]
[1737646983937,0.0004495,104820.0,104810.0,0.14351]
[1737646984083,0.0004495,104820.0,104810.0,0.93717408]
[1737646984287,0.0004495,104820.0,104810.0,1.18615786]
[1737646985566,0.0004495,104820.0,104810.0,1.12064378]
[1737646986798,0.0004495,104820.0,104810.0,1.07064378]
[1737646987084,0.0155315,104840.0,104830.0,0.272192]
[1737646987289,0.0154438,104840.0,104830.0,0.919152]
[1737646987603,0.0154438,104840.0,104830.0,1.00070156]
[1737646987804,0.0154438,104840.0,104830.0,0.95070156]
[1737646988069,0.0154438,104840.0,104830.0,1.00070156]
[1737646988226,0.20817409,104840.0,104830.0,0.75796227]
[1737646988549,0.38117409,104840.0,104830.0,0.63116227]
[1737646988888,0.40727409,104840.0,104830.0,0.42153184]
[1737646989088,0.38727409,104840.0,104830.0,0.42153184]
[1737646989389,0.38727409,104840.0,104830.0,0.23544573]
[1737646989583,0.38727409,104840.0,104830.0,0.2323754]
[1737646989814,0.38727409,104840.0,104830.0,0.22174313]
[1737646990016,0.38727409,104840.0,104810.0,0.001]
[1737646990219,0.61112399,104820.0,104810.0,0.001]
[1737646990418,0.095419,104800.0,104790.0,0.095428]
[1737646990618,0.3637767,104820.0,104810.0,0.18885371]
[1737646990961,0.67194199,104820.0,104810.0,0.18885371]
[1737646991158,0.82194199,104820.0,104810.0,0.18885371]
[1737646991532,0.80194199,104820.0,104810.0,0.18885371]
[1737646991733,0.55656629,104820.0,104810.0,0.18885371]
[1737646992045,0.55656629,104820.0,104810.0,0.19314504]
[1737646992241,0.56626925,104820.0,104810.0,0.19314504]
[1737646993577,0.41626925,104820.0,104810.0,0.19314504]
[1737646993768,0.56926925,104820.0,104810.0,0.19314504]
[1737646993986,0.83564495,104820.0,104810.0,0.19314504]
[1737646994184,0.095438,104780.0,104770.0,0.0001424]
[1737646994524,0.36578529,104780.0,104770.0,0.47750201]
[1737646994723,0.34278529,104780.0,104770.0,0.47750201]
[1737646995323,0.36578529,104780.0,104770.0,0.47750201]
[1737646995650,0.34278529,104780.0,104770.0,0.47750201]
[1737646997139,0.36578529,104780.0,104770.0,0.47750201]
[1737646997981,0.34278529,104780.0,104770.0,0.47750201]
[1737646998159,0.34378529,104780.0,104770.0,0.47750201]
[1737646999288,0.26084202,104780.0,104770.0,0.47750201]
[1737646999496,0.25134729,104780.0,104770.0,0.62294901]
[1737647000377,0.10134729,104780.0,104770.0,0.62294901]
[1737647000794,0.10034729,104780.0,104770.0,0.62294901]
[1737647001521,0.003,104780.0,104770.0,0.67274901]
[1737647001726,0.095432,104790.0,104770.0,0.81362601]
[1737647001925,0.095432,104790.0,104770.0,0.52730201]
[1737647001926,0.19278529,104780.0,104770.0,0.52730201]
[1737647002421,0.34278529,104780.0,104770.0,0.52730201]
[1737647002766,0.34278529,104780.0,104770.0,0.47750201]
[1737647003720,0.24734729,104780.0,104770.0,0.62294901]
[1737647003869,0.24734729,104780.0,104770.0,0.57294901]
[1737647004104,0.24734729,104780.0,104770.0,0.62294901]
[1737647004542,0.24734729,104780.0,104770.0,0.62394901]
[1737647004750,0.00946975,104800.0,104790.0,0.095428]
[1737647004973,0.22929604,104820.0,104790.0,0.60204]
[1737647004974,0.095411,104810.0,104790.0,0.60204]
[1737647005122,0.09734729,104810.0,104800.0,0.095419]
[1737647005326,0.09734729,104810.0,104800.0,0.572519]
[1737647005530,0.09764633,104810.0,104800.0,0.572519]
[1737647005731,0.24764633,104810.0,104800.0,0.572519]
[1737647005932,0.34305633,104810.0,104800.0,0.572519]
[1737647006260,0.09764633,104810.0,104800.0,0.622519]
[1737647006413,0.09764633,104810.0,104800.0,0.572519]
[1737647006623,0.09764633,104810.0,104800.0,0.622519]
[1737647008597,0.61143203,104810.0,104800.0,0.4771]
[1737647008740,0.61143203,104810.0,104800.0,0.4801]
[1737647009194,0.66863203,104810.0,104800.0,0.33026928]
[1737647009403,0.66863203,104810.0,104800.0,0.001]
[1737647009554,0.61143203,104810.0,104800.0,0.47808]
[1737647009756,0.61143203,104810.0,104800.0,0.572499]
[1737647009757,0.09764633,104810.0,104800.0,0.572499]
[1737647009957,0.00029904,104810.0,104800.0,0.622499]
[1737647010237,0.00029904,104810.0,104800.0,0.623499]
[1737647011090,0.00029904,104810.0,104800.0,0.622499]
[1737647013046,0.00929904,104810.0,104800.0,0.623499]
[1737647013389,0.00029904,104810.0,104800.0,0.71954629]
[1737647013702,0.0154438,104840.0,104830.0,0.144092]
[1737647013925,0.0154438,104840.0,104830.0,0.671052]
[1737647014104,0.0154438,104840.0,104830.0,0.78839929]
[1737647014306,0.0154438,104840.0,104830.0,0.86429929]
[1737647014804,0.00029968,104850.0,104840.0,0.115383]
[1737647014987,0.00029968,104850.0,104840.0,0.86841082]
[1737647015186,0.00029968,104850.0,104840.0,0.94431082]
[1737647015546,0.00029968,104850.0,104840.0,1.21994004]
[1737647015949,0.00029925,104860.0,104850.0,0.07]
[1737647016155,0.00044872,104860.0,104850.0,0.81549129]
[1737647016331,0.00044872,104860.0,104850.0,0.91283858]
[1737647017371,0.00044872,104860.0,104850.0,0.89564974]
[1737647017571,0.00044872,104860.0,104850.0,0.91283858]
[1737647017772,0.00044872,104860.0,104850.0,0.89283858]
[1737647018069,0.00044872,104860.0,104850.0,0.91283858]
[1737647018571,0.00044872,104860.0,104850.0,0.94720251]
[1737647019280,0.00044872,104860.0,104850.0,0.85085522]
[1737647019596,0.00044872,104860.0,104850.0,0.8760415]
[1737647020447,0.00044872,104860.0,104850.0,0.8770415]
[1737647020855,0.00044872,104860.0,104850.0,0.90966045]
[1737647021055,0.00044872,104860.0,104850.0,0.88447417]
[1737647021259,0.00044872,104860.0,104850.0,0.77671295]
[1737647021459,0.00044872,104860.0,104850.0,0.70973007]
[1737647022018,0.00044872,104860.0,104850.0,0.700144]
[1737647022908,0.00044872,104860.0,104850.0,0.719144]
[1737647023105,0.00044872,104860.0,104850.0,0.699144]
[1737647023311,0.00044872,104860.0,104850.0,0.698144]
[1737647023526,0.00044872,104860.0,104850.0,0.47787]
[1737647023527,0.09779601,104860.0,104850.0,0.47787]
[1737647023733,0.00044872,104860.0,104850.0,0.624244]
[1737647023935,0.19316101,104860.0,104850.0,0.52887]
[1737647024190,0.19316101,104860.0,104850.0,0.623244]
[1737647024344,0.19316101,104860.0,104850.0,0.52787]
[1737647024535,0.19316101,104860.0,104850.0,0.623244]
[1737647024737,0.19316101,104860.0,104850.0,0.624244]
[1737647025058,0.09779601,104860.0,104850.0,0.624244]
[1737647025391,0.00044872,104860.0,104850.0,0.624244]
[1737647025595,0.09779601,104860.0,104850.0,0.624244]
[1737647026165,0.09779601,104860.0,104850.0,0.622244]
[1737647026368,0.09779601,104860.0,104850.0,0.623244]
[1737647026785,0.00044872,104860.0,104850.0,0.623244]
[1737647027002,0.09779601,104860.0,104850.0,0.622244]
[1737647027364,0.09779601,104860.0,104850.0,0.623244]
[1737647027996,0.09779601,104860.0,104850.0,0.624244]
[1737647028398,0.09779601,104860.0,104850.0,0.623244]
[1737647028764,0.09779601,104860.0,104850.0,0.624244]
[1737647029203,0.00044872,104860.0,104850.0,0.57395578]
[1737647029403,0.00044872,104860.0,104850.0,0.62395578]
[1737647029622,0.00044872,104860.0,104850.0,0.72130307]
[1737647029820,0.00044872,104860.0,104850.0,0.85660307]
[1737647030518,0.00044872,104860.0,104850.0,0.80660307]
[1737647030726,0.00044872,104860.0,104850.0,0.95395036]
[1737647030874,0.00044872,104860.0,104850.0,0.77344764]
[1737647031788,0.00044872,104860.0,104850.0,0.77359004]
[1737647032107,0.00044872,104860.0,104850.0,0.62409818]
[1737647032244,0.19316101,104860.0,104850.0,0.62409818]
[1737647032452,0.09779601,104860.0,104850.0,0.62409818]
[1737647033693,0.19316101,104860.0,104850.0,0.57409818]
[1737647033900,0.34316101,104860.0,104850.0,0.47872418]
[1737647034102,0.36616101,104860.0,104850.0,0.47872418]
[1737647034320,0.24779601,104860.0,104850.0,0.57409818]
[1737647034533,0.00044872,104860.0,104850.0,0.62309818]
[1737647034934,0.00044872,104860.0,104850.0,0.62409818]
[1737647035460,0.00044872,104860.0,104850.0,0.62309818]
[1737647035660,0.09779601,104860.0,104850.0,0.62309818]
[1737647036010,0.19316101,104860.0,104850.0,0.62309818]
[1737647036207,0.19316101,104860.0,104850.0,0.62409818]
[1737647036833,0.19316101,104860.0,104850.0,0.62209818]
[1737647037088,0.36616101,104860.0,104850.0,0.47672418]
[1737647037235,0.38616101,104860.0,104850.0,0.47672418]
[1737647037437,0.42339101,104860.0,104850.0,0.33343646]
[1737647037711,0.42339101,104860.0,104850.0,0.33543646]
[1737647038271,0.42339101,104860.0,104850.0,0.33443646]
[1737647038473,0.02,104840.0,104800.0,0.0001424]
[1737647038684,0.09541,104810.0,104800.0,0.1455614]
[1737647038845,0.19275729,104810.0,104800.0,0.1455614]
[1737647039045,0.19275729,104810.0,104800.0,0.6226414]
[1737647039730,0.286222,104820.0,104810.0,0.05]
[1737647039976,0.19275429,104820.0,104810.0,0.62246]
[1737647040397,0.02823094,104860.0,104810.0,0.60959071]
[1737647040540,0.02823094,104860.0,104850.0,0.145374]
[1737647040541,0.00944872,104860.0,104850.0,0.145374]
[1737647040756,0.09779601,104860.0,104850.0,0.622244]
[1737647041149,0.20216101,104860.0,104850.0,0.622244]
[1737647041353,0.10679601,104860.0,104850.0,0.623244]
[1737647041567,0.09779601,104860.0,104850.0,0.622244]
[1737647041744,0.00044872,104860.0,104850.0,1.14769129]
[1737647041926,0.00044872,104860.0,104850.0,1.16510769]
[1737647042483,0.00044872,104860.0,104850.0,1.000344]
[1737647042698,0.00044872,104860.0,104850.0,1.050344]
[1737647042911,0.00044872,104860.0,104850.0,1.000344]
[1737647043079,0.00044872,104860.0,104850.0,1.050344]
[1737647043601,0.00044872,104860.0,104850.0,1.000344]
[1737647044181,0.00044872,104860.0,104850.0,1.050344]
[1737647044383,0.00044872,104860.0,104850.0,1.000344]
[1737647044797,0.00044872,104860.0,104850.0,1.051344]
[1737647045007,0.00044872,104860.0,104850.0,1.0534864]
[1737647045174,0.00044872,104860.0,104850.0,1.06951116]
[1737647045590,0.00044872,104860.0,104850.0,1.0534864]
[1737647045885,0.00044872,104860.0,104850.0,1.0504864]
[1737647046284,0.00044872,104860.0,104850.0,1.0514864]
[1737647046690,0.09779601,104860.0,104850.0,1.0514864]
[1737647046896,0.00044872,104860.0,104850.0,1.0014864]
[1737647047107,0.00044872,104860.0,104850.0,1.06124108]
[1737647047308,0.00044872,104860.0,104850.0,1.09003758]
[1737647047535,0.00044872,104860.0,104850.0,1.12252777]
[1737647047938,0.00044872,104860.0,104850.0,1.09373127]
[1737647048159,0.00044872,104860.0,104850.0,1.0514864]
[1737647048458,0.34316101,104860.0,104850.0,0.7309124]
[1737647048752,0.36616101,104860.0,104850.0,0.9766124]
[1737647049183,0.36616101,104860.0,104850.0,0.9756124]
[1737647049388,0.34316101,104860.0,104850.0,0.9736124]
[1737647049595,0.34316101,104860.0,104850.0,0.9746124]
[1737647049917,0.34316101,104860.0,104850.0,0.9766124]
[1737647050521,0.34316101,104860.0,104850.0,1.0719864]
[1737647050985,0.34316101,104860.0,104850.0,0.9766124]
[1737647051335,0.36616101,104860.0,104850.0,0.9766124]
[1737647051990,0.36616101,104860.0,104850.0,0.9756124]
[1737647052211,0.36616101,104860.0,104850.0,0.9736124]
[1737647052423,0.36616101,104860.0,104850.0,0.9746124]
[1737647052625,0.34316101,104860.0,104850.0,1.0699864]
[1737647052759,0.19316101,104860.0,104850.0,1.1219864]
[1737647053006,0.19316101,104860.0,104850.0,1.1209864]
[1737647053007,0.00044872,104860.0,104850.0,1.1209864]
[1737647053191,0.19316101,104860.0,104850.0,0.9756124]
[1737647053389,0.34316101,104860.0,104850.0,0.9736124]
[1737647053633,0.34316101,104860.0,104850.0,1.0689864]
[1737647053827,0.34316101,104860.0,104850.0,0.9736124]
[1737647054298,0.24879601,104860.0,104850.0,1.0689864]
[1737647054658,0.34416101,104860.0,104850.0,1.0689864]
[1737647054856,0.09879601,104860.0,104850.0,1.1189864]
[1737647055713,0.09879601,104860.0,104850.0,1.9335864]
[1737647055880,0.09879601,104860.0,104850.0,1.3369864]
[1737647056043,0.00144872,104860.0,104850.0,1.2869864]
[1737647056247,0.00144872,104860.0,104850.0,1.3369864]
[1737647056447,0.00044872,104860.0,104850.0,1.3379864]
[1737647057041,0.00044872,104860.0,104850.0,1.3399864]
[1737647060082,0.00044872,104860.0,104850.0,1.2899864]
[1737647060083,0.19316101,104860.0,104850.0,1.2899864]
[1737647060289,0.19316101,104860.0,104850.0,1.1946124]
[1737647060501,0.50030123,104860.0,104850.0,1.1946124]
[1737647060964,0.34316101,104860.0,104850.0,1.1946124]
[1737647061513,0.34316101,104860.0,104850.0,1.2899864]
[1737647061708,0.24779601,104860.0,104850.0,1.3399864]
[1737647061917,0.34316101,104860.0,104850.0,1.3389864]
[1737647062121,0.24779601,104860.0,104850.0,1.2869864]
[1737647062326,0.24779601,104860.0,104850.0,1.3369864]
[1737647062547,0.24779601,104860.0,104850.0,1.3379864]
[1737647062887,0.09779601,104860.0,104850.0,1.3379864]
[1737647063633,0.34316101,104860.0,104850.0,1.1926124]
[1737647064413,0.34316101,104860.0,104850.0,1.1946124]
[1737647064632,0.34316101,104860.0,104850.0,1.2899864]
[1737647064834,0.34316101,104860.0,104850.0,1.1946124]
[1737647065197,0.34316101,104860.0,104850.0,1.2879864]
[1737647065399,0.34316101,104860.0,104850.0,1.2869864]
[1737647065623,0.34316101,104860.0,104850.0,1.38433369]
[1737647065624,0.00044872,104860.0,104850.0,1.38433369]
[1737647065829,0.00044872,104860.0,104850.0,1.43233369]
[1737647066031,0.00044872,104860.0,104850.0,1.48233369]
[1737647066396,0.00044872,104860.0,104850.0,1.3849864]
[1737647068073,0.00044872,104860.0,104850.0,1.478959]
[1737647068289,0.00044872,104860.0,104850.0,1.59630629]
[1737647068482,0.00044872,104860.0,104850.0,1.62597365]
[1737647068688,0.00029946,104870.0,104860.0,0.344765]
[1737647068887,0.00029946,104870.0,104860.0,1.19628958]
[1737647069115,0.00029946,104870.0,104860.0,1.26359459]
[1737647069334,0.00029968,104890.0,104880.0,0.145347]
[1737647069552,0.00029968,104890.0,104880.0,0.73069765]
[1737647069748,0.00029968,104890.0,104880.0,0.7850183]
[1737647069956,0.00029968,104890.0,104880.0,0.88236559]
[1737647070436,0.00029968,104890.0,104880.0,0.96386559]
[1737647070683,0.00029968,104890.0,104880.0,0.99684667]
[1737647070944,0.000877,104900.0,104880.0,1.78344696]
[1737647071180,0.00137514,104900.0,104890.0,0.29458453]
[1737647071430,0.00137514,104900.0,104890.0,1.35750485]
[1737647071657,0.00137514,104900.0,104890.0,1.19620266]
[1737647071907,0.00137514,104900.0,104890.0,0.798527]
[1737647072137,0.00137514,104900.0,104890.0,0.848527]
[1737647072388,0.00137514,104900.0,104890.0,0.88264466]
[1737647072879,0.00137514,104900.0,104890.0,1.35254466]
[1737647073166,0.09872243,104900.0,104890.0,1.268427]
[1737647073398,0.00137514,104900.0,104890.0,1.33872906]
[1737647073629,0.00137514,104900.0,104890.0,1.318427]
[1737647073852,0.00137514,104900.0,104890.0,1.613127]
[1737647074082,0.00137514,104900.0,104890.0,1.666127]
[1737647074998,0.00137514,104900.0,104890.0,1.80336845]
[1737647075238,0.00137514,104900.0,104890.0,1.83539008]
[1737647075724,0.00137514,104900.0,104890.0,2.13273737]
[1737647076006,0.00137514,104900.0,104890.0,2.15446485]
[1737647076228,0.00137514,104900.0,104890.0,2.18402706]
[1737647076477,0.00137514,104900.0,104890.0,2.18202706]
[1737647076714,0.00137514,104900.0,104890.0,2.15246485]
[1737647076977,0.00029862,104920.0,104910.0,0.05]
[1737647077212,0.00044803,104920.0,104910.0,0.92206629]
[1737647077443,0.00044803,104920.0,104910.0,0.87836227]
[1737647077683,0.00044803,104920.0,104910.0,0.85663479]
[1737647077900,0.00044803,104920.0,104910.0,1.73656045]
[1737647078175,0.00044803,104920.0,104910.0,1.80825773]
[1737647078427,0.00044803,104920.0,104910.0,1.80675773]
[1737647078937,0.00044803,104920.0,104910.0,1.51215773]
[1737647079185,0.00044803,104920.0,104910.0,1.61215773]
[1737647080003,0.00044803,104920.0,104910.0,2.05675773]
[1737647080726,3e-08,104920.0,104910.0,2.05675773]
[1737647080930,3e-08,104920.0,104910.0,1.98516629]
[1737647081137,3e-08,104920.0,104910.0,2.04848041]
[1737647081340,3e-08,104920.0,104910.0,1.96023]
[1737647081541,0.00029862,104960.0,104950.0,0.05]
[1737647081739,0.00029862,104970.0,104960.0,0.095274]
[1737647081939,0.00029862,104970.0,104960.0,0.78495812]
[1737647082317,0.00029862,104970.0,104960.0,0.85230541]
[1737647082473,0.00029862,104970.0,104960.0,0.83188717]
[1737647082797,0.00029862,104970.0,104960.0,0.84912617]
[1737647082935,0.00029862,104970.0,104960.0,0.97923446]
[1737647083169,0.00029862,104970.0,104960.0,1.05873446]
[1737647083373,0.00029862,104970.0,104960.0,1.10873446]
[1737647083662,0.00029862,104970.0,104960.0,1.25873446]
[1737647083797,0.00029862,104970.0,104960.0,1.64343446]
[1737647084388,0.00029862,104970.0,104960.0,1.69343446]
[1737647084738,0.00029862,104970.0,104960.0,2.12333446]
[1737647084942,0.0001425,104980.0,104970.0,0.265265]
[1737647085262,5e-07,104980.0,104970.0,1.3235595]
[1737647085400,1e-06,104990.0,104980.0,0.315256]
[1737647085617,1e-06,104990.0,104980.0,1.04988563]
[1737647086262,1e-06,104990.0,104980.0,0.99484492]
[1737647086464,1e-06,104990.0,104980.0,1.06418329]
[1737647086666,1e-06,104990.0,104980.0,1.16153058]
[1737647086991,1e-06,104990.0,104980.0,2.009124]